bitfinex-derivatives/quotes_SOLF0:USTF0_20250130
["timestamp","ask_amount","ask_price","bid_price","bid_amount"]
[1738258196861,3.34105963,240.58,240.56,7.14545607]
[1738258197067,0.02990325,240.59,240.56,7.14545607]
[1738258197265,0.02990325,240.59,240.58,7.14545607]
[1738258197463,4.05348734,240.68,240.58,7.14545607]
[1738258197667,12.20794045,240.72,240.65,7.14545607]
[1738258197668,3.34205448,240.67,240.65,7.14545607]
[1738258197968,8.69041293,240.66,240.63,7.14545607]
[1738258198160,8.69041293,240.65,240.63,7.14545607]
[1738258198358,3.34246651,240.64,240.63,7.14545607]
[1738258198561,3.34246651,240.64,240.61,7.14545607]
[1738258198766,3.34246651,240.63,240.61,7.17668744]
[1738258198963,0.0281211,240.66,240.61,7.17668744]
[1738258199164,8.69415532,240.65,240.61,11.33288744]
[1738258199366,3.34390589,240.64,240.61,7.17668744]
[1738258199669,3.3440027,240.63,240.61,7.17668744]
[1738258199867,7.17357717,240.66,240.61,0.03123137]
[1738258200167,8.69490906,240.65,240.61,0.03123137]
[1738258200466,7.17357717,240.66,240.61,0.03123137]
[1738258200467,3.34419579,240.64,240.61,7.17668744]
[1738258200669,0.0281211,240.66,240.63,7.14545607]
[1738258200861,3.34538934,240.65,240.63,7.14545607]
[1738258201059,8.69805817,240.64,240.63,7.14545607]
[1738258201259,8.69805817,240.64,240.63,11.30115607]
[1738258201664,3.34538934,240.64,240.63,11.30115607]
[1738258202469,3.34538934,240.64,240.63,4.1557]
[1738258202970,3.34538934,240.64,240.62,4.1561]
[1738258203164,3.34538934,240.63,240.62,4.1561]
[1738258203358,1.16168934,240.63,240.62,4.1561]
[1738258203561,0.0281211,240.66,240.61,7.17668744]
[1738258203759,4.05669885,240.73,240.65,7.14545607]
[1738258203961,7.02124311,240.72,240.68,7.14545607]
[1738258204163,5.36032438,240.71,240.7,11.30015607]
[1738258204967,15.54688492,240.78,240.73,4.1541]
[1738258205167,6.941338,240.77,240.73,4.1541]
[1738258205471,6.941338,240.76,240.73,4.18252456]
[1738258205767,6.941338,240.75,240.73,0.02842456]
[1738258205973,5.22636295,240.74,240.73,0.02842456]
[1738258206168,7.14545607,240.76,240.73,0.02842456]
[1738258206469,0.22191316,240.78,240.74,7.14545607]
[1738258206662,0.22191316,240.78,240.73,0.02842456]
[1738258206867,0.22191316,240.78,240.76,4.1537]
[1738258207268,0.22191316,240.78,240.73,0.02842456]
[1738258207971,5.04172412,240.77,240.73,0.02842456]
[1738258208171,5.04172412,240.76,240.73,0.02842456]
[1738258208372,5.04172412,240.75,240.73,0.02842456]
[1738258208672,0.22191316,240.78,240.73,0.02842456]
[1738258208871,5.04241562,240.77,240.73,0.02842456]
[1738258209063,0.22191316,240.78,240.76,11.17105159]
[1738258209267,11.17105159,240.91,240.76,11.17105159]
[1738258209268,5.06248438,240.85,240.76,11.17105159]
[1738258209566,5.06248438,240.85,240.73,2.70842456]
[1738258209567,8.438e-05,240.85,240.84,4.1523]
[1738258209763,6.28441095,240.93,240.83,11.17105159]
[1738258209964,6.28441095,240.93,240.88,11.17105159]
[1738258210370,6.31494609,240.93,240.88,11.20014391]
[1738258210670,11.17105159,240.91,240.88,9.232e-05]
[1738258210872,8.25243692,240.9,240.88,9.232e-05]
[1738258211067,3.17420202,240.89,240.88,9.232e-05]
[1738258211272,7.32560202,240.89,240.88,9.232e-05]
[1738258211575,18.50583282,240.89,240.88,9.232e-05]
[1738258212774,7.32560202,240.89,240.88,9.232e-05]
[1738258213074,12.40522361,240.89,240.88,9.232e-05]
[1738258213572,8.25382361,240.89,240.73,11.17105159]
[1738258213776,4.07437129,240.87,240.73,11.17105159]
[1738258213975,4.07437034,240.87,240.75,4.1537]
[1738258214177,4.07437034,240.85,240.75,4.1537]
[1738258214477,4.07437034,240.85,240.76,4.1536]
[1738258214478,4.1528,240.81,240.76,4.1536]
[1738258214777,4.1528,240.81,240.78,0.02838963]
[1738258215474,0.03126797,240.82,240.81,4.1528]
[1738258215669,3.1081263,240.82,240.79,11.17105159]
[1738258215875,3.07685833,240.81,240.78,0.02838963]
[1738258216176,3.07685833,240.8,240.78,0.02838963]
[1738258216472,3.07685833,240.79,240.78,0.02838963]
[1738258217475,4.18396797,240.82,240.78,0.02838963]
[1738258217675,3.00278177,240.81,240.78,0.02838963]
[1738258217873,4.1531,240.79,240.78,0.02838963]
[1738258218072,4.1531,240.79,240.7,2.7457]
[1738258218073,3.00278177,240.79,240.71,4.1544]
[1738258218269,3.00278177,240.78,240.7,11.17105159]
[1738258218473,4.1534,240.78,240.7,11.17105159]
[1738258218877,3.00322202,240.77,240.7,11.17105159]
[1738258219176,0.0273042,240.76,240.73,15.32505159]
[1738258219577,0.0273042,240.76,240.74,4.1539]
[1738258220176,0.0273042,240.76,240.75,4.1538]
[1738258222782,3.63964216,240.87,240.79,4.153]
[1738258223086,7.69500982,240.86,240.75,11.17105159]
[1738258223379,2.8203,240.88,240.75,11.17105159]
[1738258223380,4.1528,240.82,240.75,11.17105159]
[1738258223580,2.95961916,240.81,240.75,11.17105159]
[1738258223790,1.4191,240.87,240.81,4.1528]
[1738258224078,7.72592258,240.86,240.81,4.1528]
[1738258224283,7.69445665,240.85,240.82,0.02623565]
[1738258224482,0.03146593,240.86,240.82,0.02623565]
[1738258224682,0.03146593,240.86,240.84,11.17105159]
[1738258224877,0.03146593,240.86,240.82,0.02623565]
[1738258225484,2.8866621,240.85,240.75,15.32485159]
[1738258225686,2.8866621,240.84,240.75,15.32485159]
[1738258225886,2.8866621,240.83,240.75,15.32485159]
[1738258226183,2.8866621,240.83,240.67,1.3104]
[1738258226184,2.8866621,240.82,240.73,4.154]
[1738258226385,1.3614,240.85,240.73,4.154]
[1738258226386,2.8866621,240.81,240.73,4.154]
[1738258226579,1.3614,240.85,240.73,4.154]
[1738258226779,0.02967702,240.8,240.75,0.02744439]
[1738258226984,2.88593047,240.79,240.75,0.02744439]
[1738258227185,0.02967702,240.8,240.75,0.02744439]
[1738258227482,4.1536,240.77,240.75,0.02744439]
[1738258227784,0.02967702,240.8,240.75,0.02744439]
[1738258227984,2.88645574,240.79,240.75,0.02744439]
[1738258228178,2.88645574,240.78,240.75,0.02744439]
[1738258228386,0.02967702,240.8,240.76,11.17105159]
[1738258228784,2.88769215,240.79,240.76,11.17105159]
[1738258228979,0.02967702,240.8,240.75,0.02744439]
[1738258229386,2.88777468,240.79,240.75,0.02744439]
[1738258229682,0.02967702,240.8,240.75,0.02744439]
[1738258229882,2.88757132,240.79,240.75,0.02744439]
[1738258230186,0.02967702,240.8,240.76,11.17105159]
[1738258230382,0.02967702,240.8,240.76,15.32455159]
[1738258230587,0.02967702,240.8,240.76,11.17105159]
[1738258231387,0.02967702,240.8,240.75,0.02744439]
[1738258231583,2.88743738,240.79,240.75,0.02744439]
[1738258231781,2.88743738,240.78,240.75,0.02744439]
[1738258231984,4.1532,240.79,240.75,0.02744439]
[1738258232293,0.02967702,240.8,240.75,0.02744439]
[1738258232493,0.02967702,240.8,240.75,15.35219598]
[1738258232696,0.02967702,240.8,240.75,11.19849598]
[1738258233390,0.02967702,240.8,240.76,4.1536]
[1738258233588,0.02967702,240.8,240.78,11.17105159]
[1738258234589,0.02967702,240.8,240.75,11.19849598]
[1738258234789,4.1532,240.79,240.75,15.35229598]
[1738258235085,0.02967702,240.8,240.75,0.02744439]
[1738258235287,4.1537,240.76,240.75,0.02744439]
[1738258243398,0.02967702,240.8,240.75,0.02744439]
[1738258243592,4.1532,240.79,240.75,11.19849598]
[1738258244499,4.1535,240.78,240.75,0.02744439]
[1738258245395,0.02967702,240.8,240.75,0.02744439]
[1738258245898,4.1537,240.76,240.75,0.02744439]
[1738258247603,3.64836685,240.76,240.75,0.02744439]
[1738258248599,3.64836685,240.76,240.66,11.17105159]
[1738258248800,2.7414,240.79,240.66,11.17105159]
[1738258249002,2.7414,240.79,240.69,11.17105159]
[1738258249604,3.65029865,240.78,240.69,11.17105159]
[1738258249803,0.02805643,240.76,240.69,11.17105159]
[1738258250303,4.18175643,240.76,240.72,4.1542]
[1738258251402,0.02805643,240.76,240.72,11.17105159]
[1738258251609,0.02805643,240.76,240.75,11.17105159]
[1738258251801,1.3898,240.86,240.75,11.17105159]
[1738258252402,3.65193447,240.85,240.75,11.17105159]
[1738258252903,3.65193447,240.84,240.75,11.17105159]
[1738258253107,0.02661259,240.82,240.78,0.03193418]
[1738258253498,3.65193447,240.81,240.78,0.03193418]
[1738258253900,4.17941259,240.82,240.78,0.03193418]
[1738258255110,4.1529,240.81,240.78,0.03193418]
[1738258257011,7.80771995,240.8,240.78,0.03193418]
[1738258258112,4.153,240.8,240.78,0.03193418]
[1738258260309,0.02661259,240.82,240.78,11.20298577]
[1738258260506,0.02661259,240.82,240.81,11.17105159]
[1738258261116,0.02661259,240.82,240.81,15.32385159]
[1738258263116,0.02661259,240.82,240.81,11.17105159]
[1738258263317,0.02661259,240.82,240.79,4.153]
[1738258263516,0.02661259,240.82,240.78,11.20298577]
[1738258263713,0.02661259,240.82,240.81,11.17105159]
[1738258264115,0.02661259,240.82,240.81,15.32385159]
[1738258264413,0.02661259,240.82,240.81,4.1528]
[1738258264820,0.02661259,240.82,240.78,0.03193418]
[1738258265915,0.02661259,240.82,240.78,11.20298577]
[1738258266112,1.3585,240.94,240.81,11.17105159]
[1738258266318,1.3585,240.94,240.9,4.1511]
[1738258266613,1.3529,240.95,240.85,11.17105159]
[1738258267214,0.02730822,240.92,240.88,0.02875102]
[1738258267413,4.17840822,240.92,240.88,0.02875102]
[1738258267818,0.02730822,240.92,240.88,0.02875102]
[1738258268220,0.02730822,240.92,240.88,4.18035102]
[1738258269522,0.02730822,240.92,240.88,0.02875102]
[1738258269717,4.1513,240.9,240.88,0.02875102]
[1738258270221,4.1511,240.91,240.88,0.02875102]
[1738258270923,0.02730822,240.92,240.88,0.02875102]
[1738258271122,0.02730822,240.92,240.89,4.1513]
[1738258272317,0.02730822,240.92,240.9,4.1511]
[1738258272621,0.02730822,240.92,240.88,11.19980261]
[1738258273024,0.02730822,240.92,240.91,4.1511]
[1738258275217,0.02730822,240.92,240.91,15.32215159]
[1738258275424,4.2075,241.02,240.91,11.17105159]
[1738258276525,0.03045317,240.99,240.95,4.1502]
[1738258276714,0.03045317,240.99,240.94,11.20190628]
[1738258276915,0.03045317,240.99,240.97,11.17105159]
[1738258277124,0.03045317,240.99,240.98,4.1499]
[1738258277319,2.831,241.13,240.97,11.17105159]
[1738258277524,2.831,241.13,241.03,11.17105159]
[1738258277724,4.1479,241.1,241.04,4.1487]
[1738258277919,4.1479,241.1,241.03,11.17105159]
[1738258278524,0.03016068,241.09,241.04,0.02788361]
[1738258281126,4.1483,241.07,241.04,0.02788361]
[1738258281528,0.03016068,241.09,241.04,0.02788361]
[1738258281724,4.17816068,241.09,241.04,0.02788361]
[1738258282827,0.03016068,241.09,241.04,0.02788361]
[1738258284924,4.1487,241.05,241.04,0.02788361]
[1738258285123,4.1487,241.05,240.99,4.1497]
[1738258285124,8.41778316,241.08,240.99,4.1497]
[1738258285325,4.1499,240.98,240.94,11.17105159]
[1738258285522,4.1499,240.98,240.91,2.6592]
[1738258285523,8.41778316,240.97,240.91,11.17105159]
[1738258285729,8.41778316,240.96,240.91,11.17105159]
[1738258285925,22.94099025,240.95,240.88,11.17105159]
[1738258286129,8.41778316,240.94,240.88,11.17105159]
[1738258286428,8.41778316,240.93,240.89,0.03122505]
[1738258286628,8.41778316,240.92,240.91,11.17105159]
[1738258287129,0.02807297,240.94,240.91,11.17105159]
[1738258287728,0.02807297,240.94,240.93,4.1507]
[1738258288321,0.02807297,240.94,240.91,11.17105159]
[1738258288322,0.02807297,240.94,240.91,15.32195159]
[1738258288925,0.02807297,240.94,240.91,11.17105159]
[1738258289326,10.4989099,240.93,240.91,11.17105159]
[1738258290233,0.02807297,240.94,240.91,11.17105159]
[1738258290532,0.02807297,240.94,240.89,0.03122505]
[1738258291233,10.50400694,240.93,240.89,0.03122505]
[1738258291533,14.65490694,240.93,240.89,0.03122505]
[1738258291833,10.50400694,240.92,240.89,0.03122505]
[1738258292329,4.17877297,240.94,240.89,0.03122505]
[1738258292533,0.02807297,240.94,240.89,0.03122505]
[1738258293938,4.1511,240.92,240.89,0.03122505]
[1738258295229,0.02807297,240.94,240.89,0.03122505]
[1738258295432,4.1507,240.93,240.89,0.03122505]
[1738258296732,0.02807297,240.94,240.89,0.03122505]
[1738258296928,4.151,240.92,240.89,0.03122505]
[1738258299136,0.02807297,240.94,240.89,0.03122505]
[1738258299834,4.1508,240.93,240.89,0.03122505]
[1738258300135,0.02807297,240.94,240.89,0.03122505]
[1738258300534,4.1511,240.92,240.91,7.14113388]
[1738258301833,0.02807297,240.94,240.89,7.17235893]
[1738258302039,4.1512,240.9,240.89,7.17235893]
[1738258303038,0.02807297,240.94,240.89,7.17235893]
[1738258303039,4.1509,240.92,240.89,7.17235893]
[1738258303334,4.1509,240.92,240.91,7.14113388]
[1738258304338,0.02807297,240.94,240.91,7.14113388]
[1738258304538,0.02807297,240.94,240.93,7.14113388]
[1738258305337,4.17867297,240.94,240.93,7.14113388]
[1738258305532,0.02807297,240.94,240.91,7.14113388]
[1738258306644,0.02807297,240.94,240.89,7.17235893]
[1738258307045,0.02807297,240.94,240.91,7.14113388]
[1738258307341,4.1509,240.92,240.91,7.14113388]
[1738258309047,0.02807297,240.94,240.89,7.17235893]
[1738258309243,4.1512,240.9,240.89,7.17235893]
[1738258309443,4.1512,240.9,240.89,0.03122505]
[1738258309644,9.86383388,240.93,240.85,7.14113388]
[1738258309845,11.21533388,240.93,240.85,7.14113388]
[1738258310536,4.1519,240.86,240.85,7.14113388]
[1738258310736,7.1707943,240.91,240.87,0.03089741]
[1738258310937,7.14113388,240.91,240.83,7.14113388]
[1738258311442,7.14113388,240.89,240.81,7.14113388]
[1738258311640,4.1524,240.84,240.81,7.14113388]
[1738258311840,7.14113388,240.83,240.75,7.14113388]
[1738258312140,7.14113388,240.83,240.71,20.87924545]
[1738258312141,11.29393388,240.81,240.8,6.744e-05]
[1738258312344,7.14113388,240.81,240.73,7.14113388]
[1738258312544,2.7837,240.83,240.71,32.05231983]
[1738258312936,2.7837,240.83,240.74,11.17307438]
[1738258313344,0.02765807,240.81,240.74,11.17307438]
[1738258314149,4.153,240.8,240.75,4.1538]
[1738258314547,0.02765807,240.81,240.77,11.17307438]
[1738258314847,2.8324,240.89,240.8,11.17307438]
[1738258315147,2.8324,240.89,240.83,11.17307438]
[1738258315344,4.1516,240.88,240.83,11.17307438]
[1738258315552,2.8324,240.89,240.83,11.17307438]
[1738258315747,2.8324,240.89,240.81,4.1526]
[1738258315947,0.02953806,240.88,240.84,0.02791581]
[1738258316552,0.02953806,240.88,240.72,11.17307438]
[1738258316553,0.02953806,240.88,240.74,11.17307438]
[1738258316747,11.17307438,240.87,240.74,15.32707438]
[1738258316948,11.17307438,240.87,240.74,11.17307438]
[1738258317250,4.1532,240.79,240.71,11.17307438]
[1738258317753,4.17989698,240.77,240.71,4.1544]
[1738258318051,11.17307438,240.84,240.71,4.1544]
[1738258318252,0.03009643,240.76,240.68,11.17307438]
[1738258318452,0.03009643,240.76,240.73,4.1541]
[1738258319159,0.03009643,240.76,240.75,4.1538]
[1738258320352,0.03009643,240.76,240.71,11.17307438]
[1738258320353,2.8324,240.89,240.74,11.17307438]
[1738258320549,2.8324,240.89,240.77,11.17307438]
[1738258320756,4.1521,240.86,240.77,11.17307438]
[1738258321360,4.1509,240.93,240.83,11.17307438]
[1738258321657,4.1509,240.93,240.77,2.7]
[1738258321658,4.2417,240.96,240.86,11.17307438]
[1738258321858,0.02730608,240.9,240.86,11.17307438]
[1738258322058,0.02730608,240.9,240.89,0.02965034]
[1738258322854,0.02730608,240.9,240.89,4.18105034]
[1738258323559,0.02730608,240.9,240.89,15.35412472]
[1738258323866,4.2438,241.03,240.89,11.20272472]
[1738258324258,4.2438,241.03,240.89,11.17307438]
[1738258324560,4.2438,241.03,240.9,4.1511]
[1738258324853,4.2438,241.03,240.94,0.0285725]
[1738258325053,0.03025597,240.99,240.94,0.0285725]
[1738258326063,4.1504,240.95,240.94,0.0285725]
[1738258326459,11.20333035,240.99,240.84,11.17307438]
[1738258326656,11.17307438,240.99,240.84,11.17307438]
[1738258327265,11.17307438,240.99,240.84,15.32527438]
[1738258327465,0.03121373,240.94,240.89,0.02665492]
[1738258328462,0.03121373,240.94,240.9,11.17307438]
[1738258328966,0.03121373,240.94,240.93,4.1507]
[1738258329762,0.03121373,240.94,240.9,11.17307438]
[1738258329969,0.03121373,240.94,240.93,4.1507]
[1738258334872,0.03121373,240.94,240.91,4.151]
[1738258335561,0.03121373,240.94,240.89,0.02665492]
[1738258335562,0.03121373,240.94,240.92,4.1508]
[1738258337766,0.03121373,240.94,240.93,4.1507]
[1738258338468,11.17307438,241.08,240.93,11.17307438]
[1738258338771,11.17307438,241.11,241.0,4.1495]
[1738258338966,4.1486,241.06,240.96,11.17307438]
[1738258339674,4.1486,241.06,241.0,4.1494]
[1738258339675,0.02778221,241.03,241.0,4.1494]
[1738258339970,0.02778221,241.03,240.99,0.02678239]
[1738258340171,0.02778221,241.03,240.99,4.17648239]
[1738258341167,0.02778221,241.03,240.99,0.02678239]
[1738258341572,4.1495,241.0,240.99,0.02678239]
[1738258343174,11.17307438,241.02,240.89,11.17307438]
[1738258343374,4.1509,240.92,240.86,4.1519]
[1738258343571,11.17307438,240.99,240.83,12.62457438]
[1738258343974,11.17307438,240.96,240.83,12.62457438]
[1738258344172,4.1513,240.9,240.84,4.1523]
[1738258344475,4.1513,240.9,240.87,0.02951412]
[1738258344664,4.1516,240.88,240.87,0.02951412]
[1738258346175,4.1525,240.83,240.75,2.8757]
[1738258346469,4.1525,240.83,240.74,154.17458161]
[1738258346974,4.1525,240.83,240.74,11.17307438]
[1738258347170,4.1525,240.83,240.76,4.1536]
[1738258347369,0.02969787,240.81,240.76,4.1536]
[1738258348980,0.02969787,240.81,240.77,4.1535]
[1738258349176,0.02969787,240.81,240.74,11.17307438]
[1738258349475,0.02969787,240.81,240.76,4.1536]
[1738258349675,0.02969787,240.81,240.77,11.17307438]
[1738258350476,0.02969787,240.81,240.8,11.17307438]
[1738258351269,0.02969787,240.81,240.8,15.32607438]
[1738258353081,1.3114,240.95,240.8,11.17307438]
[1738258353278,4.1507,240.94,240.88,4.1516]
[1738258353479,1.3114,240.95,240.86,11.17307438]
[1738258353880,4.1508,240.93,240.87,4.1517]
[1738258354079,2.7738,241.0,240.86,11.17307438]
[1738258354284,0.03107539,240.92,240.88,0.02688967]
[1738258354583,0.03107539,240.92,240.88,4.17838967]
[1738258354783,0.03107539,240.92,240.88,0.02688967]
[1738258354979,4.18197539,240.92,240.88,0.02688967]
[1738258355181,0.03107539,240.92,240.88,0.02688967]
[1738258355782,4.1514,240.89,240.88,0.02688967]
[1738258355978,0.03107539,240.92,240.77,11.17307438]
[1738258356181,11.17307438,240.93,240.79,4.1531]
[1738258356874,4.1523,240.84,240.79,4.1531]
[1738258357179,0.03106799,240.84,240.76,2.68]
[1738258358281,0.03106799,240.84,240.75,4.1538]
[1738258358282,4.1531,240.8,240.74,15.32697438]
[1738258358486,4.1531,240.8,240.74,4.1539]
[1738258358684,0.03106799,240.84,240.74,4.1539]
[1738258359382,4.1533,240.79,240.72,4.1543]
[1738258359783,0.02936419,240.78,240.72,4.1543]
[1738258360284,0.02936419,240.78,240.71,11.17307438]
[1738258360486,0.02936419,240.78,240.7,4.1546]
[1738258360985,4.1536,240.77,240.71,4.1545]
[1738258361483,0.02936419,240.78,240.74,4.154]
[1738258362188,0.02936419,240.78,240.77,4.1535]
[1738258362480,0.02936419,240.78,240.74,11.17307438]
[1738258363279,0.02936419,240.78,240.77,4.1535]
[1738258363686,0.02936419,240.78,240.77,15.32657438]
[1738258363887,1.4185,240.88,240.77,11.17307438]
[1738258364085,2.8415,240.89,240.81,11.17307438]
[1738258364887,0.02974207,240.87,240.83,0.03079256]
[1738258365087,0.02974207,240.87,240.84,11.17307438]
[1738258365789,0.02974207,240.87,240.85,4.1521]
[1738258366290,0.02974207,240.87,240.83,0.03079256]
[1738258367081,4.18154207,240.87,240.83,0.03079256]
[1738258367287,0.02974207,240.87,240.83,0.03079256]
[1738258367888,4.18154207,240.87,240.83,0.03079256]
[1738258368689,0.02974207,240.87,240.83,0.03079256]
[1738258370494,0.02974207,240.87,240.83,4.18329256]
[1738258372097,0.02974207,240.87,240.83,0.03079256]
[1738258372794,4.152,240.86,240.83,0.03079256]
[1738258373096,0.02974207,240.87,240.83,0.03079256]
[1738258374096,4.18154207,240.87,240.83,0.03079256]
[1738258374295,0.02974207,240.87,240.83,4.18319256]
[1738258375788,0.02974207,240.87,240.83,0.03079256]
[1738258376297,0.02974207,240.87,240.86,4.1519]
[1738258376796,0.02974207,240.87,240.84,4.1522]
[1738258378702,0.02974207,240.87,240.85,4.1521]
[1738258379001,0.02974207,240.87,240.83,0.03079256]
[1738258379798,4.18164207,240.87,240.83,0.03079256]
[1738258380195,0.02974207,240.87,240.83,0.03079256]
[1738258380405,0.02974207,240.87,240.83,4.18319256]
[1738258380702,0.02974207,240.87,240.83,0.03079256]
[1738258381402,4.1523,240.84,240.83,0.03079256]
[1738258381599,0.02974207,240.87,240.73,2.7214]
[1738258381904,17.86268392,240.9,240.73,2.7214]
[1738258382103,17.86268392,240.9,240.71,143.00150723]
[1738258382501,4.1533,240.79,240.72,4.1542]
[1738258382702,0.02917436,240.78,240.72,4.1542]
[1738258382902,17.86268392,240.86,240.68,17.86268392]
[1738258383104,0.0286268,240.77,240.71,4.1544]
[1738258383405,0.0286268,240.77,240.68,17.86268392]
[1738258383600,4.1822268,240.77,240.7,4.1547]
[1738258383998,4.1822268,240.77,240.65,143.00150723]
[1738258384203,4.1537,240.76,240.7,4.1546]
[1738258384405,0.0286268,240.77,240.65,143.00150723]
[1738258384903,0.0286268,240.77,240.64,20.67798392]
[1738258384904,4.1538,240.75,240.64,20.67798392]
[1738258385207,4.1538,240.75,240.64,17.86268392]
[1738258385501,0.03151483,240.72,240.64,17.86268392]
[1738258386498,0.03151483,240.72,240.7,4.1545]
[1738258386899,0.03151483,240.72,240.68,11.17551078]
[1738258387809,0.03151483,240.72,240.71,15.33001078]
[1738258390602,1.3551,240.84,240.71,11.17551078]
[1738258391507,1.3551,240.84,240.76,4.1536]
[1738258391707,1.3551,240.84,240.71,11.17551078]
[1738258391708,0.02983653,240.8,240.75,0.0302876]
[1738258392911,4.1533,240.78,240.75,0.0302876]
[1738258393509,4.1532,240.79,240.75,0.0302876]
[1738258394605,0.02983653,240.8,240.75,0.0302876]
[1738258395911,0.02983653,240.8,240.77,11.17551078]
[1738258396413,0.02983653,240.8,240.79,4.1531]
[1738258399509,6.9008,240.94,240.77,11.17551078]
[1738258399714,2.7501,240.94,240.84,11.17551078]
[1738258400011,1.4488,241.01,240.87,11.17551078]
[1738258400212,1.4488,241.01,240.92,4.1509]
[1738258400518,0.0281887,240.99,240.94,0.02984648]
[1738258402416,4.1501,240.97,240.94,0.02984648]
[1738258402716,0.0281887,240.99,240.94,0.02984648]
[1738258403108,4.1504,240.95,240.94,0.02984648]
[1738258403512,11.17551078,240.97,240.83,11.17551078]
[1738258404316,4.1507,240.94,240.85,4.1521]
[1738258404721,4.1507,240.94,240.87,0.02938473]
[1738258404722,0.02902934,240.92,240.87,0.02938473]
[1738258407116,0.02902934,240.92,240.87,4.18108473]
[1738258407322,4.17992934,240.92,240.87,0.02938473]
[1738258407621,0.02902934,240.92,240.87,0.02938473]
[1738258408528,0.02902934,240.92,240.87,4.18118473]
[1738258409018,0.02902934,240.92,240.9,4.1511]
[1738258409319,0.02902934,240.92,240.87,0.02938473]
[1738258409523,0.02902934,240.92,240.89,11.17551078]
[1738258409722,0.02902934,240.92,240.9,4.1512]
[1738258410524,0.02902934,240.92,240.88,4.1515]
[1738258411023,0.02902934,240.92,240.87,0.02938473]
[1738258412317,4.1511,240.91,240.87,0.02938473]
[1738258412722,0.02902934,240.92,240.87,0.02938473]
[1738258412923,4.17992934,240.92,240.87,0.02938473]
[1738258414329,0.02902934,240.92,240.87,0.02938473]
[1738258414529,1.3632,241.03,240.89,11.17551078]
[1738258414824,1.3367,241.04,240.95,11.17551078]
[1738258415723,1.3367,241.04,240.97,0.02992756]
[1738258415920,0.02715807,241.02,240.97,0.02992756]
[1738258416827,4.1494,241.01,240.97,0.02992756]
[1738258417028,0.02715807,241.02,240.97,0.02992756]
[1738258417230,0.02715807,241.02,240.98,11.17551078]
[1738258417627,0.02715807,241.02,240.97,0.02992756]
[1738258419828,0.02715807,241.02,241.01,11.17551078]
[1738258420022,2.8094,241.11,241.01,11.17551078]
[1738258420927,6.957,241.11,241.04,4.1488]
[1738258421228,0.02730119,241.08,241.04,0.03175217]
[1738258421633,4.1484,241.07,241.04,0.03175217]
[1738258421833,0.02730119,241.08,241.04,0.03175217]
[1738258422332,4.1485,241.06,241.04,0.03175217]
[1738258422539,0.02730119,241.08,241.04,0.03175217]
[1738258428837,4.1485,241.06,241.04,0.03175217]
[1738258429044,0.02730119,241.08,241.04,0.03175217]
[1738258429441,4.1498,240.99,240.93,15.32621078]
[1738258429940,1.3817,241.07,240.93,11.17551078]
[1738258430143,4.1499,240.98,240.93,11.17551078]
[1738258430542,0.02738675,240.98,240.93,11.20686252]
[1738258431243,0.02738675,240.98,240.93,0.03135174]
[1738258432136,4.1504,240.96,240.93,0.03135174]
[1738258433044,4.1504,240.95,240.93,0.03135174]
[1738258433345,0.02738675,240.98,240.93,0.03135174]
[1738258433846,0.02738675,240.98,240.94,11.17551078]
[1738258434436,0.02738675,240.98,240.94,15.32601078]
[1738258434737,0.02738675,240.98,240.94,11.17551078]
[1738258435343,0.02738675,240.98,240.94,15.32591078]
[1738258435741,0.02738675,240.98,240.94,11.17551078]
[1738258436343,2.6973,241.07,240.97,11.17551078]
[1738258436549,1.3198,241.18,241.05,11.17551078]
[1738258436744,3.979,241.18,241.08,11.17551078]
[1738258437749,0.03045909,241.15,241.11,0.02692009]
[1738258437939,3.979,241.18,241.05,11.17551078]
[1738258438141,0.02822565,241.15,241.11,0.03185517]
[1738258439150,4.1473,241.13,241.11,0.03185517]
[1738258439648,0.02822565,241.15,240.97,17.8295093]
[1738258439853,17.8295093,241.17,241.01,4.1492]
[1738258440053,17.8295093,241.17,240.97,17.8295093]
[1738258440754,4.1482,241.08,241.05,0.02772064]
[1738258441253,0.03010289,241.09,241.05,0.02772064]
[1738258442354,0.03010289,241.09,241.06,4.1485]
[1738258442557,0.03010289,241.09,241.05,0.02772064]
[1738258443855,0.03010289,241.09,241.05,4.17632064]
[1738258444056,0.03010289,241.09,241.05,0.02772064]
[1738258446150,4.1485,241.06,241.05,0.02772064]
[1738258449861,4.1485,241.06,240.97,21.9794093]
[1738258449862,4.1493,241.02,240.97,4.1499]
[1738258450253,1.3496,241.08,240.98,4.1498]
[1738258450961,0.03067349,241.05,241.01,0.0264077]
[1738258451362,4.1492,241.02,241.01,0.0264077]
[1738258453065,4.17937349,241.05,241.01,0.0264077]
[1738258453265,0.03067349,241.05,241.01,0.0264077]
[1738258453565,0.03067349,241.05,241.03,4.149]
[1738258454167,0.03067349,241.05,241.03,4.1489]
[1738258454362,0.03067349,241.05,241.01,17.855917]